Cogmind - Beta 16 @@@ ROGUE MODE // 2026.02.09 @ 19:41:42 Player: Shay Result: Destroyed by Striker with Plasma Lance Performance ------------- Evolutions (5) 2500 Regions Visited (13) 2600 Robots Destroyed (91) 455 Value Destroyed (3411) 3411 Prototype IDs (34) 680 Alien Tech Used (0) 0 Bonus (3565) 3565 TOTAL SCORE: 13211 Bonus ------- Follower Combat Kills 357 Aligned with FarCom 300 Met Warlord at Base 500 MAIN.C Attacked Warlord 500 Warlord Defense Kills 1908 Cogmind --------- Core Integrity 0/1000 Matter 300/300 Energy 91/100 System Corruption 13% Temperature Cool (0) Movement Core (100) Ox1 Location -5/Warlord Parts ------- > --- POWER (1) -------- (None) > --- PROPULSION (4) --- (None) > --- UTILITY (9) ------ Improved Trap Scanner Improved Terrain Scanner Advanced Terrain Scan Processor Advanced Targeting Computer Hacking Suite > --- WEAPON (3) ------- (None) > --- INVENTORY (5) ---- Advanced Heat Sink Improved Trap Scanner 0b10 Decoder Chip [Scout] Advanced Hacking Suite Advanced System Shield Peak State ------------ > --- POWER ------------ Neutrino Core > --- PROPULSION ------- Armored Medium Treads Wheel Armored Wheel Armored Wheel > --- UTILITY ---------- High-capacity Storage Unit Improved Trap Scanner Machine Analyzer Improved Terrain Scanner Advanced Terrain Scan Processor Hardened Medium Armor Plating Layered Medium Armor Plating Improved Focal Shield Hacking Suite > --- WEAPON ----------- AWS/Autocannon > --- INVENTORY -------- Neutrino Core Armored Medium Treads Armored Wheel Advanced Heat Sink High-capacity Storage Unit Compact Matter Pod Improved Trap Scanner Armor Integrity Analyzer Improved Particle Charger Hardened Medium Armor Plating Advanced Hacking Suite Advanced System Shield System Guard System Restoration Module Arc Projector Long-range Proton Cannon Heavy Machine Gun Long-range Missile Launcher Long-range Missile Launcher Phasing Sabre [Rating: 89] Favorites ----------- Power Neutrino Core Engine Deuterium Engine Power Core Neutrino Core Propulsion Armored Wheel Treads Armored Medium Treads Wheel Armored Wheel Utility Hardened Medium Armor Plating Device Improved Terrain Scanner Storage High-capacity Storage Unit Processor Machine Analyzer Hackware Hacking Suite Protection Hardened Medium Armor Plating Weapon AWS/Autocannon Energy Gun Heavy EM Pulse Gun Energy Cannon Vortex Cannon Ballistic Gun Assault Rifle Ballistic Cannon AWS/Autocannon Launcher Long-range Missile Launcher Build | -11 -10 -10 -9 -9 -9 -8 -8 -7 -6 -5 -5 -5 -5 ------- Run | Yrd Mat Min Mat Min Exi Min Mat Fac Fac Fac Upp Upp War Slots Evolved 10 | . . . 2 . . . 2 2 2 2 . . . Power . | . . . . . . . . . . . . . . Propulsion 2 | . . . . . . . 1 . . 1 . . . Utility 7 | . . . 2 . . . . 2 2 1 . . . Weapon 1 | . . . . . . . 1 . . . . . . Parts Attached 55 | 6 4 1 11 . 1 . 3 5 5 6 1 2 10 Power 6 | 1 . . 1 . . . 1 . . 1 . . 2 Engine 2 | 1 . . 1 . . . . . . . . . . Core 4 | . . . . . . . 1 . . 1 . . 2 Reactor . | . . . . . . . . . . . . . . Propulsion 15 | 2 2 . 3 . . . 1 1 1 3 . . 2 Treads 3 | . . . . . . . . . . 2 . . 1 Leg . | . . . . . . . . . . . . . . Wheel 12 | 2 2 . 3 . . . 1 1 1 1 . . 1 Hover . | . . . . . . . . . . . . . . Flight . | . . . . . . . . . . . . . . Utility 23 | 1 1 1 4 . 1 . . 4 4 2 1 2 2 Device 7 | . . 1 2 . . . . 1 2 . . 1 . Storage 3 | 1 . . 1 . 1 . . . . . . . . Processor 6 | . . . 1 . . . . 1 1 1 . . 2 Hackware 1 | . . . . . . . . 1 . . . . . Protection 6 | . 1 . . . . . . 1 1 1 1 1 . Artifact . | . . . . . . . . . . . . . . Weapon 11 | 2 1 . 3 . . . 1 . . . . . 4 Energy Gun 2 | . . . 2 . . . . . . . . . . Energy Cannon 2 | . . . . . . . . . . . . . 2 Ballistic Gun 4 | 2 1 . 1 . . . . . . . . . . Ballistic Cannon 1 | . . . . . . . 1 . . . . . . Launcher 2 | . . . . . . . . . . . . . 2 Special Weapon . | . . . . . . . . . . . . . . Impact Weapon . | . . . . . . . . . . . . . . Slashing Weapon . | . . . . . . . . . . . . . . Piercing Weapon . | . . . . . . . . . . . . . . Special Melee Weapon . | . . . . . . . . . . . . . . Unidentified Prototypes 3 | . . . . . . . 1 . . . . . 2 Parts Lost 17 | . . 1 2 . . . . 1 . . . . 13 Power . | . . . . . . . . . . . . . . Propulsion 6 | . . . 1 . . . . 1 . . . . 4 Utility 6 | . . 1 . . . . . . . . . . 5 Weapon 5 | . . . 1 . . . . . . . . . 4 Highest Loss Streak 7 | . . 1 1 . . . . 1 . . . . 7 To Critical Strikes 1 | . . . . . . . . . . . . . 1 Average Backups 16 | 3 8 8 9 14 17 17 18 18 19 19 20 20 19 Power . | . 1 1 1 1 1 1 1 1 1 1 1 1 . Propulsion 2 | 1 2 1 2 4 4 3 2 3 2 1 2 2 1 Utility 8 | . 3 3 3 5 6 7 9 8 10 10 11 11 11 Weapon 5 | . 1 3 3 3 5 6 5 5 5 6 6 6 4 Tool/Special . | . . . . . . . . . . . . . . Unused Backups 44 | . 2 . 5 . . 2 7 1 4 3 . 1 19 Power 3 | . . . 1 . . . 1 . . 1 . . . Propulsion 5 | . 1 . . . . 1 . . 1 1 . . 1 Utility 18 | . 1 . 3 . . 1 2 . . . . 1 10 Weapon 18 | . . . 1 . . . 4 1 3 1 . . 8 Tool/Special . | . . . . . . . . . . . . . . Average Slot Usage (%) 90 | . 99 100 98 100 100 100 80 83 85 85 88 88 86 Engine 3 | . 14 14 11 11 11 11 8 . . . . . . Core 3 | . . . . . . . 1 7 6 5 5 5 4 Treads 2 | . . . . . . . . . . 4 5 5 5 Wheel 19 | . 28 28 21 22 22 22 26 22 20 17 17 17 16 Device 15 | . . 12 21 22 22 22 18 17 19 11 11 14 16 Storage 7 | . 14 14 11 11 11 11 9 7 6 5 5 5 4 Processor 9 | . . . 10 11 11 11 9 7 6 11 11 11 11 Hackware 3 | . . . . . . . . 6 6 5 5 5 5 Protection 8 | . 13 1 . . . . . 4 12 14 17 13 9 Energy Gun 3 | . . . 19 11 11 11 . . . . . . . Ballistic Gun 3 | . 28 28 2 11 11 11 . . . . . . . Ballistic Cannon 3 | . . . . . . . 8 7 6 5 5 5 4 Peak Build Rating 89 | 7 8 8 18 19 22 22 50 59 71 85 86 88 89 Average Rating 58 | 5 7 7 16 18 19 22 46 57 68 79 85 87 85 On Entrance 38 | . 7 8 8 18 19 22 22 50 59 69 85 86 88 Avg Prop Armor Cover (%) 5 | . . . . . . . . . . 5 5 5 6 Naked Turns . | . . . . . . . . . . . . . . Heaviest Build 142 | 11 15 15 97 97 97 57 111 118 129 142 142 141 136 Greatest Support 34 | 32 32 26 26 22 22 22 32 32 34 34 34 34 34 Greatest Overweight (x) 8 | . . . 8 4 4 2 3 5 4 4 4 4 6 Average Overweight (x) 2 | . . . 2 4 2 2 3 3 3 3 4 3 2 Largest Inventory Capacity 25 | 8 8 8 25 25 25 20 20 20 20 20 20 20 20 Average Capacity 19 | 7 8 8 19 25 21 20 20 20 20 20 20 20 19 Most Carried 20 | 8 8 8 14 16 20 20 20 20 20 20 20 20 20 Average Carried 17 | 3 7 7 9 14 17 19 18 18 19 19 20 19 19 Final Capacity 25 | 8 8 8 25 25 20 20 20 20 20 20 20 20 5 Final Carried 20 | 8 8 8 13 16 20 19 20 19 18 20 20 20 5 Class Distribution -------------------- 31% | Mutant 21% | Tank 18% | Skirmisher 15% | Scavenger-Tank 13% | Scavenger-Skirmisher Dominant Class ---------------- Mutant | -10/Materials Mutant | -10/Mines Mutant | -9/Materials Mutant | -9/Mines Mutant | -9/Exiles Mutant | -8/Mines Skirmisher | -8/Materials Scavenger-Skirmisher | -7/Factory Scavenger-Skirmisher | -6/Factory Skirmisher | -5/Factory Scavenger-Tank | -5/Upper Caves Tank | -5/Upper Caves Tank | -5/Warlord Resources | -11 -10 -10 -9 -9 -9 -8 -8 -7 -6 -5 -5 -5 -5 ----------- Run | Yrd Mat Min Mat Min Exi Min Mat Fac Fac Fac Upp Upp War Matter Collected 1268 | 292 196 56 148 20 . 37 . 80 40 50 42 40 267 Remotely . | . . . . . . . . . . . . . . Salvage Created 2888 | 129 262 98 624 . . 111 46 380 237 360 164 97 380 Parts 161 | 13 13 4 41 . . 7 1 16 12 13 15 3 23 Haulers Intercepted 3 | . 1 . 2 . . . . . . . . . . Recyclers Shooed 1 | . . . 1 . . . . . . . . . . Parts Field Recycled . | . . . . . . . . . . . . . . Retrieved Matter . | . . . . . . . . . . . . . . Parts Self-Destructed 16 | . . . . . . . . . . . 13 3 . Prevented . | . . . . . . . . . . . . . . Parts Restored . | . . . . . . . . . . . . . . Kills | -11 -10 -10 -9 -9 -9 -8 -8 -7 -6 -5 -5 -5 -5 ------- Run | Yrd Mat Min Mat Min Exi Min Mat Fac Fac Fac Upp Upp War Combat Hostiles Destroyed 69 | . 7 2 9 . . 1 1 8 6 7 4 2 22 Guns 19 | . 7 2 9 . . 1 . . . . . . . Cannons 38 | . . . . . . . 1 8 6 7 4 2 10 AOE 12 | . . . . . . . . . . . . . 12 Classes Destroyed 15 | 2 4 . 3 . . 1 . 1 . . 2 . 2 Worker 2 | . . . . . . 2 . . . . . . . Tunneler 4 | 3 . . 1 . . . . . . . . . . Hauler 3 | . 1 . 2 . . . . . . . . . . Recycler 2 | 1 . . . . . . . . . 1 . . . Operator 4 | . . . 3 . . . . . 1 . . . . Watcher 6 | . 1 . . . . . . 3 . 2 . . . Swarmer 17 | . 3 . . . . . . . . 4 . . 10 Saboteur 3 | . . . . . . . . . . . . . 3 Grunt 28 | . 4 2 5 . . . . 5 5 1 . 2 4 Brawler 2 | . . . 1 . . 1 . . . . . . . Sentry 6 | . . . 3 . . . 1 . . 1 1 . . Hunter 3 | . . . . . . . . . . . 2 . 1 Programmer 8 | . . . . . . . . 2 1 2 . . 3 Behemoth 1 | . . . . . . . . . . . 1 . . Executioner 1 | . . . . . . . . . . . . . 1 Thug 1 | . . . . . . . . 1 . . . . . Best Kill Streak 10 | 4 3 2 3 . . 2 1 4 3 4 1 2 10 Combat Bots Only 10 | . 3 2 2 . . 1 1 4 3 4 1 2 10 Max Kills in Single Turn 4 | 1 1 1 1 . . 1 1 1 1 1 1 1 4 Gunslinging . | . . . . . . . . . . . . . . Exploded 4 | . . . . . . . . . . . . . 4 Melee . | . . . . . . . . . . . . . . Uniques/NPCs Destroyed . | . . . . . . . . . . . . . . Combat | -11 -10 -10 -9 -9 -9 -8 -8 -7 -6 -5 -5 -5 -5 -------- Run | Yrd Mat Min Mat Min Exi Min Mat Fac Fac Fac Upp Upp War Hostile Shots Fired 391 | . 32 13 26 . . 4 4 7 5 30 36 2 232 Missed 123 | . 4 1 8 . . 2 1 . 1 12 15 . 79 Hits 268 | . 28 12 18 . . 2 3 7 4 18 21 2 153 Melee 10 | . . . . . . . . . . . . . 10 Projectile 258 | . 28 12 18 . . 2 3 7 4 18 21 2 143 Critical Strikes 19 | . . . 1 . . . 1 . . 1 . 1 15 Part Disruptions 2 | . . . . . . . . . . . . . 2 Damage Taken 5388 | . 293 155 263 . . 28 43 458 257 357 379 38 3117 Core 1406 | . 55 27 26 . . . . 77 181 . . . 1040 Absorbed by Shields . | . . . . . . . . . . . . . . Ignored by Resistances 284 | . . . . . . . . . . . . . 284 Core Remaining (%) 87 | 100 . 67 . . . 93 100 89 78 . . . . Volleys Fired 101 | 8 26 7 39 . . 9 . . . . . . 12 Largest 2 | 2 2 2 2 . . 2 . . . . . . 2 Hottest 160 | 40 40 40 90 . . 68 . . . . . . 160 Shots Fired 308 | 16 52 14 78 . . 18 3 21 15 24 22 3 42 Gun 178 | 16 52 14 78 . . 18 . . . . . . . Cannon 120 | . . . . . . . 3 21 15 24 22 3 32 Launcher 10 | . . . . . . . . . . . . . 10 Special . | . . . . . . . . . . . . . . Kinetic 224 | 16 52 14 17 . . 9 3 21 15 24 22 3 28 Thermal . | . . . . . . . . . . . . . . Explosive 10 | . . . . . . . . . . . . . 10 Electromagnetic 70 | . . . 61 . . 9 . . . . . . . Entropic 4 | . . . . . . . . . . . . . 4 Robot Hit Streak 16 | 7 9 8 12 . . 2 3 13 9 7 9 12 16 Robot Miss Streak 6 | 1 3 1 3 . . 2 1 1 2 2 1 . 6 Penetration Max . | . . . . . . . . . . . . . . Secondary Targets 2 | . 1 . 1 . . . . . . . . . . Max Gunslinging Chain 1 | . 1 . 1 . . . . . . . . . . Autonomous 116 | . . . . . . . 3 21 15 24 22 3 28 Shots Hit Robots 224 | 13 37 11 50 . . 11 2 19 11 19 20 3 28 Core Hits 107 | 6 13 5 22 . . 6 1 9 5 7 5 1 27 Critical Kills . | . . . . . . . . . . . . . . Critical Parts Destroyed 1 | . . 1 . . . . . . . . . . . Critical Strikes 12 | . . 1 2 . . . . 4 2 2 1 . . Destroy 1 | . . 1 . . . . . . . . . . . Blast 9 | . . . . . . . . 4 2 2 1 . . Corrupt 2 | . . . 2 . . . . . . . . . . Melee Attacks . | . . . . . . . . . . . . . . Impact . | . . . . . . . . . . . . . . Slashing . | . . . . . . . . . . . . . . Piercing . | . . . . . . . . . . . . . . Sneak Attacks . | . . . . . . . . . . . . . . Combat Hostiles . | . . . . . . . . . . . . . . Follow-up Attacks . | . . . . . . . . . . . . . . Damage Inflicted 11205 | 146 464 140 804 . . 162 165 1541 1110 1741 1406 258 3268 Guns 1682 | 146 464 140 770 . . 162 . . . . . . . Cannons 7552 | . . . . . . . 165 1541 957 1699 1406 258 1526 Explosions 1938 | . . . 34 . . . . . 153 9 . . 1742 Melee . | . . . . . . . . . . . . . . Ramming 33 | . . . . . . . . . . 33 . . . Kinetic 8550 | 146 464 140 161 . . 87 165 1541 957 1699 1406 258 1526 Thermal 187 | . . . 34 . . . . . 153 . . . . Explosive 1742 | . . . . . . . . . . . . . 1742 Electromagnetic 693 | . . . 609 . . 75 . . . 9 . . . Impact . | . . . . . . . . . . . . . . Slashing . | . . . . . . . . . . . . . . Piercing . | . . . . . . . . . . . . . . Highest Corruption 13 | . 1 1 . . . . . . . 1 1 1 13 Average Corruption 1 | . 1 1 . . . . . . . 1 1 1 9 Corruption Purged . | . . . . . . . . . . . . . . Corruption Blocked . | . . . . . . . . . . . . . . Effects 33 | . . 1 . . . . . . . 2 11 8 11 Message Errors 9 | . . . . . . . . . . 1 4 3 1 Matter Fused 7 | . . 1 . . . . . . . . 3 3 . Heat Flow Errors 2 | . . . . . . . . . . 1 1 . . Energy Discharges 2 | . . . . . . . . . . . . . 2 Parts Rejected 3 | . . . . . . . . . . . . . 3 Data Loss (minor) 8 | . . . . . . . . . . . 3 1 4 Alerts 1 | . . . . . . . . . . . . 1 . Misdirections 1 | . . . . . . . . . . . . . 1 Overload Shots . | . . . . . . . . . . . . . . Overflow Damage 1455 | . . . . . . . . 249 174 508 82 67 375 Projectiles 1370 | . . . . . . . . 249 126 508 82 67 338 Explosions 85 | . . . . . . . . . 48 . . . 37 Melee . | . . . . . . . . . . . . . . Knockbacks 21 | . . . . . . . . 5 2 6 . 1 7 Impact 1 | . . . . . . . . . . 1 . . . Kinetic 20 | . . . . . . . . 5 2 5 . 1 7 Secondary . | . . . . . . . . . . . . . . Self-Inflicted Damage 222 | . . . 12 . . . . . 181 16 . . 13 Shots 4 | . . . 1 . . . . . 2 . . . 1 Rammed 1 | . . . . . . . . . . 1 . . . Targets Rammed 1 | . . . . . . . . . . 1 . . . Kicked . | . . . . . . . . . . . . . . Crushed . | . . . . . . . . . . . . . . Highest Temperature 164 | . 4 10 6 . . . . . . 164 144 7 75 Average Temperature 27 | . 2 5 4 . . . . . . 80 74 7 23 Received Heat Transfer 939 | . 144 93 120 . . 18 36 9 36 36 60 36 351 Siege Activations . | . . . . . . . . . . . . . . Martial Activations . | . . . . . . . . . . . . . . Shielding Activations . | . . . . . . . . . . . . . . Robots Disrupted . | . . . . . . . . . . . . . . Combat Hostiles . | . . . . . . . . . . . . . . Robots Corrupted . | . . . . . . . . . . . . . . Combat Hostiles . | . . . . . . . . . . . . . . Parts Fried 2 | . . . 2 . . . . . . . . . . Impact Corruptions . | . . . . . . . . . . . . . . Robots Melted . | . . . . . . . . . . . . . . Combat Hostiles . | . . . . . . . . . . . . . . Parts Melted 1 | . . . . . . . . . 1 . . . . Heat Transferred 200 | . . . 50 . . . . . 150 . . . . Parts Sabotaged . | . . . . . . . . . . . . . . Parts Stolen . | . . . . . . . . . . . . . . Parts Stripped . | . . . . . . . . . . . . . . Power Chain Reactions 1 | . . . 1 . . . . . . . . . . Alert | -11 -10 -10 -9 -9 -9 -8 -8 -7 -6 -5 -5 -5 -5 ------- Run | Yrd Mat Min Mat Min Exi Min Mat Fac Fac Fac Upp Upp War Maximum Alert Level 1 | . . . . . . . . . 1 . . . . Low Security (%) 98 | 100 100 100 100 100 . 100 100 100 86 100 . . . Level 1 1 | . . . . . . . . . 13 . . . . Level 2 . | . . . . . . . . . . . . . . Level 3 . | . . . . . . . . . . . . . . Level 4 . | . . . . . . . . . . . . . . Level 5 . | . . . . . . . . . . . . . . High Security . | . . . . . . . . . . . . . . Max Security . | . . . . . . . . . . . . . . Peak Influence 220 | 10 94 60 192 67 . 74 32 131 220 118 . . . Initial 67 | . . 30 . 67 . . 20 . 15 56 . . . Average 46 | 1 24 18 73 11 . 11 6 54 115 27 . . . Influence Increases 2478 | 20 226 50 482 . . 84 65 296 369 251 110 40 485 Destroy 0b10 Robot/C 1600 | . 140 40 300 . . 60 40 180 140 140 80 40 440 Destroy 0b10 Robot/NC 125 | 20 10 . 50 . . 10 . 15 5 15 . . . Destroy Leader 286 | . 24 10 102 . . 10 20 46 10 34 30 . . Allied During Kill 51 | . . . 24 . . 4 4 10 9 . . . . Successful Hack 57 | . 6 . . . . . . 14 . 37 . . . Disable Machine 180 | . . . . . . . . . 165 15 . . . Destroy Structure 59 | . 1 . 6 . . . 1 1 40 10 . . . Lose Combat Pursuer 120 | . 45 . . . . . . 30 . . . . 45 Influence Decreases 2177 | 20 148 128 308 174 . 30 119 264 284 368 110 40 184 Entered New Map 267 | . . 48 . 107 . . 34 . 17 61 . . . Time Decay 1710 | 20 148 70 288 67 . 30 85 254 237 307 110 40 54 Lost Part 170 | . . 10 20 . . . . 10 . . . . 130 Lost Ally 30 | . . . . . . . . . 30 . . . . Squads Dispatched 10 | . 2 1 2 . . . . 1 2 2 . . . Investigation 1 | . 1 . . . . . . . . . . . . Extermination 5 | . . . . . . . . 1 2 2 . . . Reinforcement 3 | . 1 . 2 . . . . . . . . . . Assault 1 | . . 1 . . . . . . . . . . . Garrison . | . . . . . . . . . . . . . . Intercept . | . . . . . . . . . . . . . . Searches Triggered . | . . . . . . . . . . . . . . Construction Impeded . | . . . . . . . . . . . . . . Haulers Reinforced . | . . . . . . . . . . . . . . Active Scanning Responses . | . . . . . . . . . . . . . . Cargo Convoy Interrupts . | . . . . . . . . . . . . . . Stealth | -11 -10 -10 -9 -9 -9 -8 -8 -7 -6 -5 -5 -5 -5 --------- Run | Yrd Mat Min Mat Min Exi Min Mat Fac Fac Fac Upp Upp War Distress Signals 5 | . 1 . 1 . . . . 1 . . . . 2 Communications Jammed . | . . . . . . . . . . . . . . Distress Signals . | . . . . . . . . . . . . . . Times Spotted 106 | . 10 2 24 . . 3 3 13 8 8 3 2 30 Peak Tracking Total 11 | . 4 2 5 . . 3 1 3 5 4 1 2 11 Tactical Retreats 7 | . 2 . . . . . . 2 . . . . 3 Traps | -11 -10 -10 -9 -9 -9 -8 -8 -7 -6 -5 -5 -5 -5 ------- Run | Yrd Mat Min Mat Min Exi Min Mat Fac Fac Fac Upp Upp War Traps Triggered 4 | . 2 . . . . . . 1 . 1 . . . Indirectly 1 | . . . . . . . . . . 1 . . . Trap Hack Attempts . | . . . . . . . . . . . . . . Triggered . | . . . . . . . . . . . . . . Disarmed . | . . . . . . . . . . . . . . Reprogrammed . | . . . . . . . . . . . . . . Reused . | . . . . . . . . . . . . . . Traps Extracted . | . . . . . . . . . . . . . . Installed . | . . . . . . . . . . . . . . Triggered . | . . . . . . . . . . . . . . Machines | -11 -10 -10 -9 -9 -9 -8 -8 -7 -6 -5 -5 -5 -5 ---------- Run | Yrd Mat Min Mat Min Exi Min Mat Fac Fac Fac Upp Upp War Machines Disabled 12 | . . . . . . . . . 11 1 . . . Max in Single Turn 11 | . . . . . . . . . 11 1 . . . Garrison Access 1 | . . . . . . . . . . 1 . . . Machines Repaired . | . . . . . . . . . . . . . . Machines Dismantled . | . . . . . . . . . . . . . . Machines Sabotaged . | . . . . . . . . . . . . . . Overloaded Fab Kills . | . . . . . . . . . . . . . . Hacking | -11 -10 -10 -9 -9 -9 -8 -8 -7 -6 -5 -5 -5 -5 --------- Run | Yrd Mat Min Mat Min Exi Min Mat Fac Fac Fac Upp Upp War Machines Accessed 28 | . 3 . 2 . 5 . . 2 5 5 . . 6 Terminals 12 | . 3 . 2 . . . . 1 2 4 . . . Fabricators 3 | . . . . . . . . 1 2 . . . . Repair Stations . | . . . . . . . . . . . . . . Recycling Units . | . . . . . . . . . . . . . . Scanalyzers . | . . . . . . . . . . . . . . Garrison Access 2 | . . . . . . . . . 1 1 . . . Total Hacks 98 | . 8 . 4 . 50 . . 3 7 13 . . 13 Successful 81 | . 3 . . . 50 . . 3 4 8 . . 13 Failed 17 | . 5 . 4 . . . . . 3 5 . . . Catastrophic 5 | . 3 . 2 . . . . . . . . . . Database Lockouts . | . . . . . . . . . . . . . . Manual 25 | . 8 . 4 . 1 . 2 1 4 5 . . . Terminals 30 | . 8 . 4 . . . . 2 4 12 . . . Fabricators 3 | . . . . . . . . 1 2 . . . . Repair Stations . | . . . . . . . . . . . . . . Recycling Units . | . . . . . . . . . . . . . . Scanalyzers . | . . . . . . . . . . . . . . Garrison Access 2 | . . . . . . . . . 1 1 . . . Terminal Hacks 72 | . 1 . . . 50 . . 2 1 5 . . 13 Record 61 | . . . . . 49 . . . . 4 . . 8 Part Schematic 1 | . 1 . . . . . . . . . . . . Prototype ID Bank 4 | . . . . . . . . . . . . . 4 Open Door 1 | . . . . . . . . . . . . . 1 Level Access Points 1 | . . . . . . . . . 1 . . . . Branch Access Points 2 | . . . . . . . . 1 . 1 . . . Alert Level 1 | . . . . . . . . 1 . . . . . Proto ID Catalog 1 | . . . . . 1 . . . . . . . . Fabricator Hacks 2 | . . . . . . . . 1 1 . . . . Build 2 | . . . . . . . . 1 1 . . . . Repair Station Hacks . | . . . . . . . . . . . . . . Recycling Unit Hacks . | . . . . . . . . . . . . . . Scanalyzer . | . . . . . . . . . . . . . . Garrison Access Hacks 1 | . . . . . . . . . . 1 . . . Seal Access 1 | . . . . . . . . . . 1 . . . Unauthorized Hacks 6 | . 2 . . . . . . . 2 2 . . . Terminals 6 | . 2 . . . . . . . 2 2 . . . Botnet 6 | . 2 . . . . . . . 2 2 . . . Fabricators . | . . . . . . . . . . . . . . Repair Stations . | . . . . . . . . . . . . . . Recycling Units . | . . . . . . . . . . . . . . Scanalyzers . | . . . . . . . . . . . . . . Garrison Access . | . . . . . . . . . . . . . . Data Cores Recovered 1 | . . . 1 . . . . . . . . . . Used . | . . . . . . . . . . . . . . Hacking Detections 15 | . 3 . 2 . . . 1 1 4 4 . . . Full Trace Events . | . . . . . . . . . . . . . . Feedback Events . | . . . . . . . . . . . . . . Feedback Blocked . | . . . . . . . . . . . . . . Robot Schematics Acquired . | . . . . . . . . . . . . . . Robots Built 4 | . . . . . . . . 3 1 . . . . Authchips . | . . . . . . . . . . . . . . Time 232 | . . . . . . . . 116 116 . . . . Total Robot Build Rating 12 | . . . . . . . . 9 3 . . . . Part Schematics Acquired 1 | . 1 . . . . . . . . . . . . Parts Built . | . . . . . . . . . . . . . . Authchips . | . . . . . . . . . . . . . . Time . | . . . . . . . . . . . . . . Total Part Build Rating . | . . . . . . . . . . . . . . Part Studies Acquired . | . . . . . . . . . . . . . . Parts Repaired . | . . . . . . . . . . . . . . Time . | . . . . . . . . . . . . . . Parts Recycled . | . . . . . . . . . . . . . . Recycled Matter . | . . . . . . . . . . . . . . Retrieved Matter . | . . . . . . . . . . . . . . Retrieved Components . | . . . . . . . . . . . . . . Parts Scanalyzed . | . . . . . . . . . . . . . . Part Schematics Acquired . | . . . . . . . . . . . . . . Parts Damaged . | . . . . . . . . . . . . . . Bothacking | -11 -10 -10 -9 -9 -9 -8 -8 -7 -6 -5 -5 -5 -5 ------------ Run | Yrd Mat Min Mat Min Exi Min Mat Fac Fac Fac Upp Upp War Used RIF Installer . | . . . . . . . . . . . . . . Robots Hacked . | . . . . . . . . . . . . . . Non-combat . | . . . . . . . . . . . . . . Combat . | . . . . . . . . . . . . . . Robot Hacks Applied . | . . . . . . . . . . . . . . Relay Couplers Released 3 | . . . . . . . . 3 . . . . . Programmers 3 | . . . . . . . . 3 . . . . . Fabnet Peak Effective % . | . . . . . . . . . . . . . . Robots Rewired . | . . . . . . . . . . . . . . Allies Hacked . | . . . . . . . . . . . . . . Hacks Repelled . | . . . . . . . . . . . . . . Allies | -11 -10 -10 -9 -9 -9 -8 -8 -7 -6 -5 -5 -5 -5 -------- Run | Yrd Mat Min Mat Min Exi Min Mat Fac Fac Fac Upp Upp War Total Allies 5 | . . 1 . . . . . 3 1 . . . . Largest Group 3 | . . 1 1 1 1 1 1 3 3 1 . . . Highest-Rated Group 48 | . . 31 31 31 31 31 31 48 48 16 . . . Highest-Rated Ally 31 | . . 31 31 31 31 31 31 31 16 16 . . . Total Orders . | . . . . . . . . . . . . . . Ally Attacks 84 | . . . 37 . . 3 1 19 23 1 . . . Total Damage 1080 | . . . 574 . . 62 20 191 233 . . . . Kills 15 | . . . 10 . . 2 1 1 1 . . . . Allies Corrupted 1 | . . . . . . . . . 1 . . . . Allies Melted 1 | . . . . . . . . . . . . . 1 Intel | -11 -10 -10 -9 -9 -9 -8 -8 -7 -6 -5 -5 -5 -5 ------- Run | Yrd Mat Min Mat Min Exi Min Mat Fac Fac Fac Upp Upp War Active Infowar (turns) 9261 | . . 221 1023 457 564 251 353 652 697 1245 1250 925 1623 Terrain 6380 | . . . . . . . . 640 697 1245 1250 925 1623 Traps 5727 | . . . . . . . . . 684 1245 1250 925 1623 Seismic 3069 | . . 221 1023 457 564 251 353 200 . . . . . Machine Analysis 5074 | . . . . . . . . . 53 1245 1250 925 1601 Robot Analysis Total . | . . . . . . . . . . . . . . Derelict Logs Recovered 6 | . . 1 . 1 . . . . . . 2 2 . Drone Launches . | . . . . . . . . . . . . . . Drone Recoveries . | . . . . . . . . . . . . . . Exploration | -11 -10 -10 -9 -9 -9 -8 -8 -7 -6 -5 -5 -5 -5 ------------- Run | Yrd Mat Min Mat Min Exi Min Mat Fac Fac Fac Upp Upp War Turns Passed 9847 | 97 461 249 1023 457 564 251 353 652 697 1245 1250 925 1623 Spaces Moved 6089 | 62 313 217 682 311 466 182 248 409 454 648 668 403 1026 Core 39 | 8 . . . . . . . . . . . . 31 Treads . | . . . . . . . . . . . . . . Legs . | . . . . . . . . . . . . . . Wheels 6050 | 54 313 217 682 311 466 182 248 409 454 648 668 403 995 Hover . | . . . . . . . . . . . . . . Flight . | . . . . . . . . . . . . . . Fastest Speed 50 | 50 90 90 85 145 115 115 128 128 128 131 146 131 100 Average Speed 128 | 93 97 90 119 145 119 115 128 129 133 139 146 135 130 Slowest Speed 210 | 100 100 90 210 145 145 115 128 155 143 146 146 146 180 Overloaded Moves . | . . . . . . . . . . . . . . Propulsion Burnouts . | . . . . . . . . . . . . . . Robots Hopped . | . . . . . . . . . . . . . . Potential Cave-ins . | . . . . . . . . . . . . . . Cave-ins Triggered . | . . . . . . . . . . . . . . Exploration Rate (%) 45 | 3 39 62 59 58 93 31 23 10 11 18 77 57 90 Regions Visited 13 Branch Regions 7 Pre-discovered Areas 2 | . . . . . 1 . . . . . . 1 . Known Exits Taken 4 | . . . 1 . . 1 . . 1 1 . . . Unknown Exits Taken 9 | 1 1 1 . 1 1 . 1 1 . . 1 1 . Scrap Searched 5 | . . 1 . 1 . . . . . . . 3 . Spaces Dug . | . . . . . . . . . . . . . . Terrain Destroyed 162 | . . . 4 . . . 1 1 47 5 5 . 99 Melee . | . . . . . . . . . . . . . . Projectile 29 | . . . . . . . 1 1 3 5 5 . 14 AOE 133 | . . . 4 . . . . . 44 . . . 85 Terrain Rammed . | . . . . . . . . . . . . . . Walls Destroyed . | . . . . . . . . . . . . . . Machines Disabled . | . . . . . . . . . . . . . . Actions | -11 -10 -10 -9 -9 -9 -8 -8 -7 -6 -5 -5 -5 -5 --------- Run | Yrd Mat Min Mat Min Exi Min Mat Fac Fac Fac Upp Upp War Total 7939 | 83 417 256 818 317 470 210 288 531 548 986 944 782 1289 Wait 1565 | . 69 31 61 4 2 13 16 113 75 321 273 375 212 Move 6076 | 61 312 216 681 310 465 181 247 408 453 647 667 402 1026 Hop . | . . . . . . . . . . . . . . Pick Up 73 | 8 3 1 13 3 2 3 12 2 6 6 1 1 12 Fast Attach 18 | 6 1 . 3 . . . 1 2 1 1 . 1 2 Attach 22 | . . 1 4 . . . 2 3 2 1 . . 9 Detach 5 | . . . 2 . . . . 1 1 . . . 1 Swap 18 | . 3 . 4 . 1 . . . 2 4 1 1 2 Drop 60 | . 3 . 11 . . 4 10 2 8 5 2 2 13 Fire 101 | 8 26 7 39 . . 9 . . . . . . 12 Melee . | . . . . . . . . . . . . . . Ram 1 | . . . . . . . . . . 1 . . . Kick . | . . . . . . . . . . . . . . Crush . | . . . . . . . . . . . . . . Escape Stasis . | . . . . . . . . . . . . . . Rewire . | . . . . . . . . . . . . . . Trap . | . . . . . . . . . . . . . . Miscellaneous . | . . . . . . . . . . . . . . Route ------- -11/Scrapyard -10/Materials -10/Mines -9/Materials (discovered 4 exits: *Mat x3 / *Min) -9/Mines (discovered 2 exits: *Mat / *Exi) -9/Exiles -8/Mines -8/Materials -7/Factory (discovered 3 exits: *Fac / *Low x2) -6/Factory (discovered 4 exits: *Fac x4) -5/Factory (discovered 3 exits: [*Fac] / *Upp x2) -5/Upper Caves -5/Upper Caves (discovered 2 exits: [Fac] / *War) -5/Warlord History --------- Turn | Location | Event 7 | -11/Scrapyard | Discovered new exit (range 16) 98 | -11/Scrapyard | Entered Materials 178 | -10/Materials | Discovered new exit (range 16) 330 | -10/Materials | Build established: Mutant 559 | -10/Materials | Entered Mines 676 | -10/Mines | Learned 8 Materials zone layouts 714 | -10/Mines | Found a hidden stash of uninstalled traps 784 | -10/Mines | Discovered new exit (range 14) 799 | -10/Mines | Met a Derelict testing a Signal Generator 808 | -10/Mines | Entered Materials 808 | -9/Materials | Accompanied by 1 ally 808 | -9/Materials | Evolved 2 slots: Utility x2 809 | -9/Materials | Identified exit to Materials 809 | -9/Materials | Identified exit to Mines 994 | -9/Materials | Discovered exit to Materials (range 10) 1720 | -9/Materials | Discovered exit to Materials (range 13) 1831 | -9/Materials | Entered Mines 1831 | -9/Mines | Accompanied by 1 ally 2001 | -9/Mines | Learned Materials emergency access door positions 2019 | -9/Mines | Discovered exit to Materials (range 14) 2117 | -9/Mines | Assembled infested the area 2241 | -9/Mines | Met 8R-AWN 2282 | -9/Mines | Discovered new exit (range 5) 2288 | -9/Mines | Entered Exiles 2288 | -9/Exiles | Accompanied by 1 ally 2323 | -9/Exiles | Welcomed by 8R-AWN 2348 | -9/Exiles | Met EX-HEX 2422 | -9/Exiles | Met EX-DEC 2452 | -9/Exiles | Visited The Gauntlet 2600 | -9/Exiles | Learned location of Zion (-7) 2637 | -9/Exiles | Met EX-BIN 2673 | -9/Exiles | Aligned with FarCom system 2674 | -9/Exiles | Given EX-Vault access code 2723 | -9/Exiles | Opened EX-Vault 2734 | -9/Exiles | Found AWS/Autocannon 2759 | -9/Exiles | Warned to stay clear of 0b10 Research branches 2839 | -9/Exiles | Discovered new exit (range 14) 2852 | -9/Exiles | Left Exiles lab with AWS/Autocannon 2852 | -9/Exiles | Entered Mines 2852 | -8/Mines | Accompanied by 1 ally 3033 | -8/Mines | Found a Scrap Suit stashed away for nefarious purposes 3084 | -8/Mines | Discovered exit to Materials (range 14) 3103 | -8/Mines | Entered Materials 3103 | -8/Materials | Accompanied by 1 ally 3103 | -8/Materials | Evolved 2 slots: Propulsion x1, Weapon x1 3391 | -8/Materials | Build established: Skirmisher 3440 | -8/Materials | Discovered new exit (range 5) 3456 | -8/Materials | Entered Factory 3456 | -7/Factory | Accompanied by 1 ally 3456 | -7/Factory | Evolved 2 slots: Utility x2 3776 | -7/Factory | Build established: Scavenger-Skirmisher 3987 | -7/Factory | Discovered new exit (range 11) 3990 | -7/Factory | Identified exit to Lower Caves 4008 | -7/Factory | Discovered new exit (range 14) 4011 | -7/Factory | P-60 Hacker assimilated allied 58-M0U(g) 4043 | -7/Factory | Fabricated G-47 Trooper? 4108 | -7/Factory | Entered another Factory area 4108 | -6/Factory | Accompanied by 3 allies 4108 | -6/Factory | Evolved 2 slots: Utility x2 4443 | -6/Factory | Fabricated M-14 Sweeper? 4480 | -6/Factory | Identified exit to Factory 4805 | -6/Factory | Entered another Factory area 4805 | -5/Factory | Accompanied by 1 ally 4805 | -5/Factory | Evolved 2 slots: Propulsion x1, Utility x1 5034 | -5/Factory | Build established: Skirmisher 5625 | -5/Factory | Discovered new exit (range 14) 5728 | -5/Factory | Identified exit to Upper Caves 6050 | -5/Factory | Entered Upper Caves 6099 | -5/Upper Caves | Attracted the attention of an 0b10 checkpoint 6400 | -5/Upper Caves | Build established: Scavenger-Tank 6552 | -5/Upper Caves | Spotted B-75 Beast 6630 | -5/Upper Caves | Destroyed B-75 Beast 7181 | -5/Upper Caves | Learned Factory stockpile data 7284 | -5/Upper Caves | Discovered new exit (range 12) 7300 | -5/Upper Caves | Entered another Upper Caves area 7463 | -5/Upper Caves | Discovered new exit (range 13) 7654 | -5/Upper Caves | Learned 12 Factory zone layouts 7931 | -5/Upper Caves | Build established: Tank 8009 | -5/Upper Caves | Discovered new exit (range 8) 8225 | -5/Upper Caves | Entered Warlord 8270 | -5/Warlord | System corruption cleaned by Quarantine Array 8467 | -5/Warlord | Learned Quarantine stockpile data 8781 | -5/Warlord | Met Warlord 8806 | -5/Warlord | Warlord's base attacked by MAIN.C 9106 | -5/Warlord | Found Prototype Energy Cannon 9108 | -5/Warlord | Found Prototype Energy Cannon 9156 | -5/Warlord | Warlord forces counterattacked 9248 | -5/Warlord | Lost 5 allies 9295 | -5/Warlord | Spotted Striker 9331 | -5/Warlord | Lost 5 allies 9481 | -5/Warlord | Warlord base infiltrated, sounded retreat 9648 | -5/Warlord | Identified Vortex Cannon (x2) 9653 | -5/Warlord | Spotted Executioner 9656 | -5/Warlord | Destroyed 10 combat bots 9678 | -5/Warlord | Destroyed Executioner 9683 | -5/Warlord | System corruption reached 10% 9716 | -5/Warlord | Lost 6 parts (2n2u2w) 9719 | -5/Warlord | Destroyed 8 combat bots 9789 | -5/Warlord | Spotted Striker 9791 | -5/Warlord | Found Prototype Launcher 9791 | -5/Warlord | Identified Chain Missile Launcher 9817 | -5/Warlord | Core integrity fell below 50% 9830 | -5/Warlord | Core integrity fell below 20% 9848 | -5/Warlord | Destroyed by Striker with Plasma Lance Last Messages --------------- 09811_ Critical hit (Impale). 09812_ Imp. Focal Shield destroyed. 09814_ Arm. Wheel destroyed. 09814_ Dropped Arm. Medium Treads. 09815_ The unstable cave ceiling collapses. 09815_ Dropped Wheel. 09815_ Lrn. Missile Launcher destroyed. 09815_ Dropped Rnf. Fission Core. 09816_ Dropped Hcp. Storage Unit. 09816_ Critical hit (Burn: +37). 09817_ Extracted 95 matter. 09823_ Adv. Targeting Computer destroyed. 09826_ Machine Analyzer destroyed. 09826_ Penetrated by Slug. 09826_ Slug penetrates Striker. 09829_ Penetrated by Slug. 09830_ System corrupted: Component data lost. 09832_ Penetrated by Slug. 09839_ Critical hit (Impale). 09847_ System corrupted: Component data lost. Map ----- +----------------------------------------------------+ | # [!!!%## ######""#####?###########" = | | " # ]===# #####""#?##?##?#########%% | | ## ]!*== # ######?""#######?##?#### % = | | ###### ## /!= # ######""############### *% | | ## # ### ######?#?###############" % | | ## # ### ##############?###?###?#" " | | ## # ### #######?###########?####" " | | ## +%! ### ##################?####"% % | | ## #! ! "####+#########################%[ | | ## # % !# ####################"#%%## | | ## # # ################## # #""" | | ## # # ################# # " | | ?####+#### # ################# "## | | ##### #### # ################# #"*%=## | | #?### ### # #####################" !%## | | ##### #### # #####################% %"## | | ##### #### # #####################%["### | | !## ### ####+#########################= "### | | + ^^ ######################## #### | | # ^^ ###################### | | "## ####### ## ################### # | | "################ ################### # # | | "##### ^ ## ##################### # | | ###### # ###########X###### # # ## | | ###### + # | | ###### # K@ | | ###?## """ """ # ########;;;;###### ### | | ??#### """ """ ######################## # | | ###### """ """ ####################### ## | | ?##### ######################### # ##### | | ???############################################### | | #?################################################ | | | | | | | | | | | | | | | | | | | | | | | | | | | | | | | | | | | | | +----------------------------------------------------+ Best States ------------- Heat Dissipation 56 Energy Generation 19 Energy Capacity 315 Matter Stores 300 Matter Capacity 300 Sight Range 16 Terrain Scan Range 16 Terrain Scan Density 210 Armor Coverage 675 Resistance: KI 25 Evasion (%) 43 Targeting Accuracy 16 Recoil Reduction 1 Offensive Hacking 10 Item Schematics ----------------- Huge Storage Unit | -10/Materials | Hacked Robot Schematics ------------------ None Fabricated ------------ G-47 Trooper | x3 | -7/Factory | Preloaded M-14 Sweeper | x1 | -6/Factory | Preloaded Repaired ---------- Nothing Studied --------- None Alien Tech Used ----------------- None Achievements -------------- Deductive Reasoning Challenges ------------ None Game ------ Seed ZioniteSmartbombRailgun Manual? 0 Play Time 01:39:09 Cumulative 26.5 hours Start 2026.02.09 @ 16:21:25 End 2026.02.09 @ 19:41:42 Sessions 1 Manual Loads 0 Difficulty Rogue Special Mode None Game No. 23 Rogue 23 Adventurer 0 Explorer 0 Win Type - Total 0 Types 0/0/0/0/0/0/0/0/0/0 Lore% 22 Gallery% 34 Achievement% 27 Wizard Run 0 Options --------- Layout 2 ASCII 0 Keyboard 0 Movement Numpad Keybinds 0 Fullscreen 0 Font 20/SmallcapsGlow Map View 50x44 Zoom Use 0% Tactical HUD 1 Map Filters NONE Filters NONE Steam 0 RUN: 1de63515-1c0e-479d-abdf-d81f84bfd486